bitfinex-derivatives/quotes_ETHF0:USTF0_20210107
["timestamp","ask_amount","ask_price","bid_price","bid_amount"]
[1610008130679,4.00959,1173.5,1164.3,17.41796273]
[1610008131181,4.00959,1173.5,1164.3,13.74396273]
[1610008131481,4.00959,1173.5,1161.0,15.48680085]
[1610008131683,4.00959,1173.5,1161.0,3.674]
[1610008131885,5.8444,1174.4,1161.0,3.674]
[1610008132082,4.00959,1174.1,1161.0,379.3]
[1610008133983,4.00959,1173.9,1161.0,379.3]
[1610008135084,64.8222,1173.6,1165.8,68.1097]
[1610008136885,4.00959,1174.0,1161.5,10.992]
[1610008137089,70.3751,1173.7,1168.3,70.6687]
[1610008143399,70.3751,1173.7,1168.3,49.36853812]
[1610008144900,70.3751,1173.7,1168.3,107.43453812]
[1610008146114,70.3751,1173.7,1168.3,71.41153812]
[1610008146307,70.3751,1173.7,1168.3,107.43453812]
[1610008147508,70.3751,1173.7,1168.3,71.41153812]
[1610008148108,4.00959,1173.6,1168.3,71.41153812]
[1610008148307,4.00959,1173.6,1168.3,107.43453812]
[1610008148709,4.00959,1173.6,1168.3,71.41153812]
[1610008150210,4.00959,1172.9,1168.3,60.41953812]
[1610008151311,34.00959,1172.9,1168.3,53.04253812]
[1610008151811,39.68359,1172.9,1168.3,53.04253812]
[1610008152111,4.00959,1171.9,1168.3,53.04253812]
[1610008152515,4.00959,1171.9,1168.3,49.36853812]
[1610008153010,4.00959,1171.9,1168.3,53.04253812]
[1610008153511,5.70729,1171.9,1168.3,53.04253812]
[1610008153711,62.8931,1171.5,1168.3,3.674]
[1610008154612,64.6165,1171.5,1168.3,3.674]
[1610008154813,62.8931,1171.5,1168.3,3.674]
[1610008155515,61.8881,1170.8,1166.2,18.369]
[1610008155714,61.8881,1170.8,1166.2,58.066]
[1610008156214,61.8881,1170.8,1166.2,22.043]
[1610008156914,63.6103,1170.8,1166.2,22.043]
[1610008157518,61.8881,1170.8,1166.2,22.043]
[1610008160422,61.8881,1170.8,1166.2,11.051]
[1610008160722,56.0538,1169.6,1166.2,13.7276]
[1610008160922,41.9265,1169.6,1166.2,13.7276]
[1610008161423,41.9265,1169.6,1166.2,6.3506]
[1610008164024,43.6436,1169.6,1166.2,6.3506]
[1610008164824,41.9265,1169.6,1166.2,6.3506]
[1610008165928,70.0681,1168.8,1166.2,6.3506]
[1610008166136,39.7756,1168.8,1166.2,13.7276]
[1610008166328,30.2122,1168.8,1166.2,13.7276]
[1610008166530,21.0191,1168.8,1166.2,13.7276]
[1610008167327,21.0191,1168.8,1166.2,24.7196]
[1610008167528,21.0191,1168.8,1166.2,3.41943812]
[1610008167735,21.0191,1168.8,1162.5,12.52671013]
[1610008167736,21.0191,1168.8,1162.5,16.20071013]
[1610008167934,22.7474,1168.8,1162.5,12.52671013]
[1610008169630,21.0191,1168.8,1162.5,12.52671013]
[1610008170633,22.7125,1168.8,1162.5,12.52671013]
[1610008171232,21.0191,1168.8,1162.5,12.52671013]
[1610008172938,22.7108,1168.8,1162.5,14.48461013]
[1610008173538,21.0191,1168.8,1162.5,14.48461013]
[1610008174339,21.0191,1168.8,1163.4,11.48794072]
[1610008174539,21.0191,1168.8,1163.4,14.58354072]
[1610008177845,22.732,1168.8,1163.4,14.58354072]
[1610008178046,21.0191,1168.8,1163.4,14.58354072]
[1610008179445,1.708,1168.8,1165.5,70.0708]
[1610008179646,1.708,1168.8,1165.5,73.1211]
[1610008180050,57.828,1170.1,1165.5,73.1211]
[1610008181154,59.5606,1170.1,1165.5,73.1211]
[1610008181351,57.828,1170.1,1165.5,73.1211]
[1610008181956,57.4569,1169.8,1166.3,62.1053]
[1610008184559,4.00959,1172.9,1165.5,3.0503]
[1610008184759,4.00959,1172.9,1162.7,3.674]
[1610008185160,34.00959,1172.9,1162.7,3.674]
[1610008185360,36.86249,1172.9,1162.7,3.674]
[1610008186064,6.86249,1172.9,1162.7,3.674]
[1610008186265,4.00959,1172.4,1162.7,3.674]
[1610008186461,1.9537,1172.6,1162.7,3.674]
[1610008186665,1.9537,1172.6,1162.7,6.0051]
[1610008187160,1.9537,1172.6,1162.7,60.3971]
[1610008187666,2.8529,1172.9,1162.7,60.3971]
[1610008188266,6.86249,1172.9,1162.7,60.3971]
[1610008191370,60.9973,1171.9,1165.8,54.9709]
[1610008191568,60.9973,1171.9,1165.8,55.71373812]
[1610008196680,60.9973,1171.9,1165.8,58.59383812]
[1610008198886,62.7243,1171.9,1165.8,58.59383812]
[1610008199486,60.9973,1171.9,1165.8,58.59383812]
[1610008200189,64.0317,1170.5,1166.6,66.1866]
[1610008200388,64.0317,1170.5,1166.6,69.8606]
[1610008203393,64.0317,1170.5,1166.6,48.56043812]
[1610008205395,64.0317,1170.5,1166.6,50.92573812]
[1610008208502,55.4885,1169.4,1166.6,6.0393]
[1610008209504,67.9844,1169.4,1166.7,55.1857]
[1610008209704,4.00959,1171.6,1166.6,6.0393]
[1610008210205,63.7907,1169.7,1166.6,73.141]
[1610008215409,63.7907,1169.7,1166.6,51.84083812]
[1610008215613,61.1112,1169.0,1165.8,10.2571]
[1610008215810,61.1112,1169.0,1166.6,3.674]
[1610008216214,61.1112,1169.0,1166.6,6.2776]
[1610008218612,61.1112,1169.0,1166.6,2.6036]
[1610008219614,56.928,1168.1,1166.6,2.6036]
[1610008220715,59.3217,1167.5,1166.6,2.6036]
[1610008221315,59.3217,1167.5,1165.8,2.8801]
[1610008221714,59.3217,1167.5,1165.8,3.674]
[1610008222215,59.3217,1167.5,1164.6,22.043]
[1610008222516,59.3217,1167.5,1164.6,11.051]
[1610008223518,59.3217,1167.5,1164.6,22.043]
[1610008223716,59.3217,1167.5,1164.6,11.051]
[1610008224018,59.3217,1167.5,1164.6,22.043]
[1610008225625,59.3217,1167.5,1164.6,11.051]
[1610008225822,59.3217,1167.5,1164.6,22.043]
[1610008227625,59.3217,1167.5,1164.6,14.60523812]
[1610008227926,59.3217,1167.5,1164.6,2.8114]
[1610008228928,58.4431,1168.5,1164.6,2.8114]
[1610008232732,58.4431,1168.5,1162.7,13.82399719]
[1610008235234,60.1434,1168.5,1162.7,13.82399719]
[1610008235534,58.4431,1168.5,1162.7,13.82399719]
[1610008238337,4.00959,1168.6,1162.7,13.82399719]
[1610008238539,4.00959,1168.2,1162.7,13.82399719]
[1610008238739,30.0,1168.9,1162.7,13.82399719]
[1610008238939,2.3385,1169.0,1162.7,13.82399719]
[1610008239638,55.3272,1167.1,1162.7,2.072]
[1610008240239,57.063,1167.1,1162.7,2.072]
[1610008241239,55.3272,1167.1,1162.7,2.072]
[1610008244045,57.0658,1167.1,1162.7,2.072]
[1610008244644,55.3272,1167.1,1162.7,2.072]
[1610008244845,55.3272,1167.1,1158.1,13.59186737]
[1610008245847,57.0205,1167.1,1158.1,13.59186737]
[1610008246047,55.3272,1167.1,1158.1,13.59186737]
[1610008247149,57.0303,1167.1,1158.1,13.59186737]
[1610008247448,55.3272,1167.1,1158.1,13.59186737]
[1610008247648,52.6915,1167.4,1158.1,13.59186737]
[1610008248048,52.6915,1167.4,1158.1,16.14886737]
[1610008249555,52.6915,1167.4,1158.1,70.54086737]
[1610008250752,54.3812,1167.4,1158.1,70.54086737]
[1610008250952,52.6915,1167.4,1158.1,70.54086737]
[1610008251555,52.6915,1167.4,1158.1,52.07280549]
[1610008251754,52.6915,1167.4,1161.9,11.49833951]
[1610008251954,52.6915,1167.4,1161.9,14.62123951]
[1610008256164,52.6915,1167.4,1161.9,72.68723951]
[1610008257064,70.1555,1168.7,1161.9,72.68723951]
[1610008263471,70.1555,1168.7,1161.9,51.38707763]
[1610008263672,70.1555,1168.7,1161.9,2.8766]
[1610008266376,4.00959,1170.8,1161.9,2.8766]
[1610008266578,4.00959,1170.5,1161.9,2.8766]
[1610008268081,9.5869,1170.9,1161.9,2.8766]
[1610008268481,13.59649,1170.9,1161.9,2.8766]
[1610008268681,13.59649,1170.9,1161.9,6.534]
[1610008269482,55.0592,1169.0,1161.9,6.534]
[1610008269882,55.0592,1169.0,1161.9,2.86]
[1610008270283,55.0592,1169.0,1161.9,60.926]
[1610008275489,55.0592,1169.0,1161.9,39.62583812]
[1610008275686,55.0592,1169.0,1161.9,3.1901]
[1610008280692,55.0592,1169.0,1160.2,16.2176431]
[1610008285100,55.0592,1169.0,1160.2,23.5946431]
[1610008285701,55.0592,1169.0,1160.2,16.2176431]
[1610008287404,55.0592,1169.0,1158.1,372.537]
[1610008287604,55.0592,1169.0,1158.1,366.58358122]
[1610008287904,55.0592,1169.0,1158.1,362.90958122]
[1610008288104,55.0592,1169.0,1158.1,373.96058122]
[1610008290710,55.0592,1169.0,1158.1,366.58358122]
[1610008291411,55.0592,1169.0,1158.1,373.96058122]
[1610008292410,55.0592,1169.0,1158.1,366.58358122]
[1610008292710,55.0592,1169.0,1158.1,368.62838122]
[1610008293612,55.0592,1169.0,1158.1,358.62838122]
[1610008294412,55.0592,1169.0,1158.1,366.00538122]
[1610008294711,55.0592,1169.0,1158.1,358.62838122]
[1610008295115,55.0592,1169.0,1158.1,366.00538122]
[1610008295313,55.0592,1169.0,1158.1,358.62838122]
[1610008295812,55.0592,1169.0,1158.1,366.00538122]
[1610008296013,55.0592,1169.0,1158.1,358.62838122]
[1610008299514,55.0592,1169.0,1158.1,337.32821934]
[1610008300018,55.0592,1169.0,1158.1,2.0448]
[1610008300316,55.0592,1169.0,1158.1,2.3705]
[1610008301519,56.7638,1169.0,1158.1,2.3705]
[1610008302016,55.0592,1169.0,1158.1,2.3705]
[1610008304220,54.01754966,1169.0,1158.2,1.30206292]
[1610008304727,55.71054966,1169.0,1158.2,1.30206292]
[1610008304919,55.71054966,1169.0,1158.1,2.3705]
[1610008305119,54.01754966,1169.0,1158.1,2.3705]
[1610008305521,54.01754966,1169.0,1156.1,387.17439563]
[1610008305921,54.01754966,1169.0,1156.1,379.79739563]
[1610008306122,54.01754966,1169.0,1156.1,387.17439563]
[1610008308725,54.01754966,1169.0,1156.1,379.79739563]
[1610008308924,54.01754966,1169.0,1156.1,387.17439563]
[1610008309826,54.01754966,1169.0,1156.1,379.79739563]
[1610008310030,54.01754966,1169.0,1156.1,387.17439563]
[1610008310628,54.01754966,1169.0,1156.1,423.19739563]
[1610008311328,54.01754966,1169.0,1156.1,425.96299563]
[1610008311527,54.01754966,1169.0,1156.1,361.26283375]
[1610008311729,54.01754966,1169.0,1156.1,737.47383375]
[1610008311928,54.01754966,1169.0,1156.1,730.09683375]
[1610008313429,55.74954966,1169.0,1156.1,730.09683375]
[1610008313830,54.01754966,1169.0,1156.1,730.09683375]
[1610008315034,54.01754966,1169.0,1156.1,737.47383375]
[1610008315438,54.01754966,1169.0,1156.1,773.49683375]
[1610008320146,54.01754966,1169.0,1156.1,766.11983375]
[1610008320344,54.01754966,1169.0,1156.1,773.49683375]
[1610008321849,54.01754966,1169.0,1166.9,11.45327487]
[1610008322150,55.75004966,1169.0,1166.9,14.64427487]
[1610008322348,54.01754966,1169.0,1166.9,14.64427487]
[1610008322748,64.8315,1169.9,1166.9,14.64427487]
[1610008323550,64.8315,1169.9,1166.9,3.0395]
[1610008326453,64.8315,1169.9,1166.9,25.0825]
[1610008328158,66.5435,1169.9,1166.9,25.0825]
[1610008328362,66.5435,1169.9,1166.9,61.1055]
[1610008328558,64.8315,1169.9,1166.9,61.1055]
[1610008329457,1.7069,1170.3,1166.9,61.1055]
[1610008329659,64.4439,1170.9,1166.9,61.1055]
[1610008332161,64.854,1171.4,1166.9,61.1055]
[1610008335565,64.854,1171.4,1166.9,2.8089]
[1610008340770,64.854,1171.4,1165.1,5.83859467]
[1610008340971,64.854,1171.4,1166.9,2.5727]
[1610008345876,64.854,1171.4,1165.1,5.83859467]
[1610008346477,66.5664,1171.4,1165.1,5.83859467]
[1610008347380,64.854,1171.4,1165.1,5.83859467]
[1610008347579,64.854,1171.4,1163.2,1.74812127]
[1610008347779,64.854,1171.4,1161.2,18.25089529]
[1610008348079,64.854,1171.4,1161.2,383.41089529]
[1610008348279,3.674,1173.6,1161.2,383.41089529]
[1610008348480,1.7175,1171.4,1161.2,18.25089529]
[1610008348679,1.7175,1171.4,1161.2,383.41089529]
[1610008349180,7.377,1174.2,1161.2,18.25089529]
[1610008349382,7.377,1174.2,1161.2,28.60359529]
[1610008349582,7.377,1174.2,1161.2,21.22659529]
[1610008351090,61.4784,1171.4,1161.2,21.22659529]
[1610008351386,61.4784,1171.4,1161.2,17.55259529]
[1610008351786,61.4784,1171.4,1161.2,21.22659529]
[1610008351987,61.4784,1171.4,1161.2,386.38659529]
[1610008352792,61.4784,1171.4,1161.2,21.22659529]
[1610008353995,61.4784,1171.4,1161.2,386.38659529]
[1610008354391,61.4784,1171.4,1161.2,21.22659529]
[1610008354793,61.4784,1171.4,1161.2,386.38659529]
[1610008354992,61.4784,1171.4,1161.2,21.22659529]
[1610008355193,61.4784,1171.4,1161.2,386.38659529]
[1610008355693,61.4784,1171.4,1161.2,21.22659529]
[1610008356093,63.1923,1171.4,1161.2,21.22659529]
[1610008356295,61.4784,1171.4,1161.2,21.22659529]
[1610008356498,61.4784,1171.4,1161.2,17.55259529]
[1610008357094,61.4784,1171.4,1161.2,75.61859529]
[1610008357696,61.4784,1171.4,1161.2,440.77859529]
[1610008358298,63.1717,1171.4,1161.2,440.77859529]
[1610008358897,63.1717,1171.4,1161.2,75.61859529]
[1610008359097,61.4784,1171.4,1161.2,75.61859529]
[1610008359297,61.4784,1171.4,1161.2,440.77859529]
[1610008359499,66.6641,1171.6,1161.2,54.31843341]
[1610008359798,66.6641,1171.6,1161.2,6.3225]
[1610008359998,66.6641,1171.6,1161.2,371.4825]
[1610008361203,66.6641,1171.6,1161.2,6.3225]
[1610008361602,66.6641,1171.6,1161.2,371.4825]
[1610008361802,68.3711,1171.6,1161.2,371.4825]
[1610008362002,66.6641,1171.6,1161.2,6.3225]
[1610008362302,66.6641,1171.6,1161.2,371.4825]
[1610008362503,66.6641,1171.6,1161.2,13.6995]
[1610008364304,66.6641,1171.6,1161.2,378.8595]
[1610008366407,66.6641,1171.6,1161.2,13.6995]
[1610008366706,66.6641,1171.6,1161.2,378.8595]
[1610008366906,66.6641,1171.6,1161.2,13.6995]
[1610008369015,66.6641,1171.6,1161.2,378.8595]
[1610008371111,66.6641,1171.6,1161.2,60.7145]
[1610008371512,66.6641,1171.6,1161.2,6.6221]
[1610008371811,66.6641,1171.6,1161.2,2.9481]
[1610008372011,66.6641,1171.6,1161.2,6.6221]
[1610008372212,66.6641,1171.6,1161.2,2.9481]
[1610008373114,66.6641,1171.6,1161.2,6.6221]
[1610008374016,66.6641,1171.6,1161.2,2.9481]
[1610008374215,66.6641,1171.6,1161.2,6.6221]
[1610008376218,66.6641,1171.6,1161.2,2.9481]
[1610008376619,66.6641,1171.6,1161.2,3.674]
[1610008376918,66.6641,1171.6,1161.2,3.0053]
[1610008378221,68.3495,1171.6,1161.2,3.0053]
[1610008378521,66.6641,1171.6,1161.2,3.0053]
[1610008378920,66.6641,1171.6,1161.2,6.6793]
[1610008379320,66.6641,1171.6,1161.2,3.0053]
[1610008380422,66.6641,1171.6,1161.2,371.8393]
[1610008383527,66.6641,1171.6,1161.2,353.30383812]
[1610008383727,66.6641,1171.6,1161.2,6.4387]
[1610008388532,57.3217,1171.0,1161.2,6.4387]
[1610008388731,59.0094,1171.0,1161.2,6.4387]
[1610008389232,57.3217,1171.0,1161.2,6.4387]
[1610008390234,59.036,1171.0,1161.2,6.4387]
[1610008390732,57.3217,1171.0,1161.2,6.4387]
[1610008391332,56.28239755,1171.0,1161.3,1.29912806]
[1610008391633,56.28239755,1171.0,1161.2,6.4387]
[1610008394333,57.96529755,1171.0,1161.2,6.4387]
[1610008394533,57.96529755,1171.0,1161.3,365.16]
[1610008395537,57.96529755,1171.0,1161.3,343.99687463]
[1610008395736,56.28239755,1171.0,1161.2,2.7647]
[1610008395936,56.28239755,1171.0,1156.1,787.4776]
[1610008396837,57.97299755,1171.0,1156.1,787.4776]
[1610008397337,56.28239755,1171.0,1156.1,787.4776]
[1610008397938,65.8069,1170.7,1156.1,787.4776]
[1610008398639,67.5346,1170.7,1156.1,787.4776]
[1610008398839,65.8069,1170.7,1156.1,787.4776]
[1610008400941,67.5145,1170.7,1156.1,787.4776]
[1610008401441,67.5145,1170.7,1166.9,12.47584239]
[1610008401641,67.5145,1170.7,1166.9,15.56154239]
[1610008401843,65.8069,1170.7,1166.9,15.56154239]
[1610008405646,65.8069,1170.7,1166.9,3.0857]
[1610008406847,65.8069,1170.7,1166.1,12.48139713]
[1610008407045,65.8069,1170.7,1166.9,2.4982]
[1610008407345,62.4247,1170.1,1166.9,2.4982]
[1610008407546,64.1101,1170.1,1165.0,7.33196768]
[1610008407745,62.4247,1170.1,1165.0,7.33196768]
[1610008410247,64.1137,1170.1,1165.0,7.33196768]
[1610008410448,62.4247,1170.1,1165.0,7.33196768]
[1610008411451,64.112,1170.1,1165.0,7.33196768]
[1610008411851,62.4247,1170.1,1165.0,7.33196768]
[1610008412651,62.4247,1170.1,1165.0,9.92456768]
[1610008416658,61.1934,1169.7,1165.0,9.92456768]
[1610008416861,62.8872,1169.7,1165.0,9.92456768]
[1610008417158,61.1934,1169.7,1165.0,9.92456768]
[1610008417558,61.1934,1169.7,1165.0,67.99056768]
[1610008419459,50.4388,1170.0,1165.0,46.82744231]
[1610008419660,50.4388,1170.0,1165.0,2.8412]
[1610008420259,52.1586,1170.0,1165.0,2.8412]
[1610008420859,50.4388,1170.0,1165.0,2.8412]
[1610008421961,50.4388,1170.0,1165.0,1.8412]
[1610008422763,52.1548,1170.0,1165.0,1.8412]
[1610008422962,50.4388,1170.0,1165.0,1.8412]
[1610008424764,50.4388,1170.0,1163.0,14.55514945]
[1610008430873,50.4388,1170.0,1163.0,72.62114945]
[1610008431473,50.4388,1170.0,1163.0,51.45802408]
[1610008431674,50.4388,1170.0,1156.1,1120.2886]
[1610008435579,69.8696,1169.3,1156.1,1120.2886]
[1610008439584,69.8696,1169.3,1156.1,1109.2966]
[1610008440888,69.8696,1169.3,1156.1,1145.3196]
[1610008441886,69.8696,1169.3,1156.1,780.1596]
[1610008443591,69.8696,1169.3,1156.1,758.99647463]
[1610008443989,69.8696,1169.3,1156.1,711.92247463]
[1610008444393,69.8696,1169.3,1156.1,758.99647463]
[1610008444792,69.8696,1169.3,1156.1,761.79767463]
[1610008455005,66.6696,1169.3,1156.1,761.79767463]
[1610008455507,63.4696,1169.3,1156.1,740.63454926]
[1610008455707,63.4696,1169.3,1156.1,697.23454926]
[1610008455907,63.4696,1169.3,1156.1,740.63454926]
[1610008456107,60.2696,1169.3,1156.1,740.63454926]
[1610008456608,57.0696,1169.3,1161.3,64.1366]
[1610008456810,57.0696,1169.3,1161.3,66.3472]
[1610008460012,63.8349,1168.8,1163.9,51.3348]
[1610008463715,55.3733,1168.1,1164.8,48.2101]
[1610008467224,55.3733,1168.1,1164.9,10.0]
[1610008467730,70.8368,1168.0,1164.9,3.1117]
[1610008472523,34.4148,1173.6,1164.9,3.1117]
[1610008472722,57.924,1168.8,1164.9,2.8921]
[1610008477625,57.924,1168.8,1164.9,13.9431]
[1610008479729,49.435,1168.3,1164.1,6.29767481]
[1610008482730,51.1617,1168.3,1165.0,5.0]
[1610008482930,51.1617,1168.3,1165.0,7.3611]
[1610008483230,49.435,1168.3,1165.0,7.3611]
[1610008487033,51.1604,1168.3,1165.0,7.3611]
[1610008487333,49.435,1168.3,1165.0,7.3611]
[1610008488435,51.1424,1168.3,1165.0,7.3611]
[1610008488935,49.435,1168.3,1165.0,7.3611]
[1610008490840,49.435,1168.3,1165.0,29.4041]
[1610008491440,49.435,1168.3,1165.0,8.24097463]
[1610008491641,49.435,1168.3,1165.0,2.7357]
[1610008491840,50.9628,1169.0,1165.0,2.7357]
[1610008496946,50.9628,1169.0,1164.1,6.29767481]
[1610008503453,50.9628,1169.0,1161.3,5.57667271]
[1610008503652,50.9628,1169.0,1161.3,1.90267271]
[1610008503853,50.9628,1169.0,1160.2,15.5966327]
[1610008509463,68.619,1169.9,1160.2,15.5966327]
[1610008509664,68.619,1169.9,1160.2,22.1007327]
[1610008510161,68.619,1169.9,1160.2,76.4927327]
[1610008510660,57.8177,1170.3,1160.2,76.4927327]
[1610008515460,57.8177,1170.3,1160.2,55.32960733]
[1610008515660,57.8177,1170.3,1160.2,57.1564]
[1610008515861,57.8177,1170.3,1160.2,60.8304]
[1610008526480,57.8177,1170.3,1161.6,15.58037912]
[1610008526680,57.8177,1170.3,1161.6,18.51027912]
[1610008526879,57.8177,1170.3,1161.6,76.57627912]
[1610008527580,57.8177,1170.3,1161.6,55.41315375]
[1610008527879,57.8177,1170.3,1161.6,58.02905375]
[1610008529380,59.6315,1170.4,1161.6,58.02905375]
[1610008539595,59.6315,1170.4,1161.6,36.86592838]
[1610008539896,59.6315,1170.4,1161.6,2.6159]
[1610008540099,59.6315,1170.4,1166.0,13.50112849]
[1610008540296,59.6315,1170.4,1166.0,16.23592849]
[1610008548211,59.1177,1170.5,1166.0,16.23592849]
[1610008551515,59.1177,1170.5,1166.0,2.4036]
[1610008552215,54.1177,1170.5,1166.0,2.4036]
[1610008556721,54.1177,1170.5,1164.0,9.61246267]
[1610008561528,54.1177,1170.5,1164.0,67.67846267]
[1610008563627,54.1177,1170.5,1164.0,53.8923373]
[1610008563829,54.1177,1170.5,1160.2,13.8154]
[1610008564028,54.1177,1170.5,1160.2,6.4384]
[1610008567032,66.77,1171.3,1160.2,6.4384]
[1610008574943,66.77,1171.3,1160.2,371.5984]
[1610008575148,66.77,1171.3,1160.2,425.9904]
[1610008575443,66.77,1171.3,1160.2,404.82727463]
[1610008575644,66.77,1171.3,1160.2,2.4192]
[1610008575842,66.77,1171.3,1160.2,6.0932]
[1610008577045,70.444,1171.3,1160.2,6.0932]
[1610008577245,66.77,1171.3,1160.2,6.0932]
[1610008578346,70.444,1171.3,1160.2,6.0932]
[1610008579347,66.77,1171.3,1160.2,6.0932]
[1610008579849,70.444,1171.3,1160.2,6.0932]
[1610008584550,66.77,1171.3,1160.2,6.0932]
[1610008585051,70.444,1171.3,1160.2,6.0932]
[1610008585350,66.77,1171.3,1160.2,6.0932]
[1610008585551,70.444,1171.3,1160.2,6.0932]
[1610008585951,66.77,1171.3,1160.2,6.0932]
[1610008586152,68.4645,1171.3,1160.2,6.0932]
[1610008586652,66.77,1171.3,1160.2,6.0932]
[1610008587653,66.77,1171.3,1160.2,2.9718]
[1610008587853,66.77,1171.3,1160.2,6.6458]
[1610008588254,69.0304,1170.4,1160.2,6.6458]
[1610008596263,69.0304,1170.4,1160.2,2.9718]
[1610008596463,69.0304,1170.4,1158.5,742.93298524]
[1610008596662,69.0304,1170.4,1158.5,735.55598524]
[1610008599568,65.3057,1168.8,1158.5,353.88763729]
[1610008601469,66.9938,1168.8,1158.5,353.88763729]
[1610008602069,65.3057,1168.8,1158.5,353.88763729]
[1610008604572,11.051,1171.4,1158.5,353.88763729]
[1610008604771,11.051,1171.4,1158.5,357.56163729]
[1610008604972,11.051,1171.4,1158.5,360.71723729]
[1610008605272,11.051,1171.4,1161.2,15.58594667]
[1610008605472,11.051,1171.4,1161.2,17.70354667]
[1610008612980,11.051,1171.4,1161.2,75.76954667]
[1610008613179,11.051,1171.4,1163.1,14.55050557]
[1610008613379,11.051,1171.4,1163.1,36.59350557]
[1610008614179,68.8792,1169.3,1163.1,36.59350557]
[1610008614980,68.8792,1169.3,1163.1,25.60150557]
[1610008615279,68.8792,1169.3,1163.1,36.59350557]
[1610008615480,68.8792,1169.3,1163.1,25.60150557]
[1610008616479,68.8792,1169.3,1163.1,36.59350557]
[1610008617081,70.6092,1169.3,1163.1,36.59350557]
[1610008617481,68.8792,1169.3,1163.1,36.59350557]
[1610008617781,70.5678,1169.3,1163.1,36.59350557]
[1610008617984,68.8792,1169.3,1163.1,36.59350557]
[1610008618182,70.5942,1169.3,1163.1,36.59350557]
[1610008618682,68.8792,1169.3,1163.1,36.59350557]
[1610008619883,70.6116,1169.3,1163.1,36.59350557]
[1610008620183,68.8792,1169.3,1163.1,36.59350557]
[1610008622989,68.8792,1169.3,1163.1,72.61650557]
[1610008627392,70.6037,1169.3,1163.1,72.61650557]
[1610008627592,68.8792,1169.3,1163.1,72.61650557]
[1610008627792,68.8792,1169.3,1163.1,36.59350557]
[1610008628092,70.5671,1169.3,1163.1,72.61650557]
[1610008628703,68.8792,1169.3,1163.1,72.61650557]
[1610008628994,68.8792,1169.3,1163.1,36.59350557]
[1610008629194,68.8792,1169.3,1163.1,72.61650557]
[1610008629695,50.8988,1169.3,1163.1,72.61650557]
[1610008632596,50.8988,1169.3,1163.1,36.59350557]
[1610008636502,50.8988,1169.3,1163.1,39.59350557]
[1610008640508,49.86060558,1169.3,1163.2,1.29774302]
[1610008640806,49.86060558,1169.3,1163.1,39.59350557]
[1610008652419,49.86060558,1169.3,1166.1,13.49972697]
[1610008659725,57.2897,1169.2,1166.1,13.49972697]
[1610008660825,54.8436,1169.1,1166.1,13.49972697]
[1610008670130,54.8436,1169.1,1166.2,1.29744385]
[1610008670331,11.051,1171.4,1166.2,1.29744385]
[1610008670730,11.051,1171.4,1166.1,13.49972697]
[1610008673333,11.051,1171.4,1168.7,12.45496278]
[1610008675236,49.0925,1171.3,1168.7,12.45496278]
[1610008679544,61.7696,1170.6,1168.7,12.45496278]
[1610008680748,61.7696,1170.6,1168.8,10.0]
[1610008686552,53.7292,1170.8,1168.9,1.29719115]
[1610008688954,66.5265,1170.7,1168.9,1.29719115]
[1610008689254,3.674,1171.4,1168.9,1.29719115]
[1610008689555,61.5714,1169.8,1168.9,1.29719115]
[1610008691759,55.9719,1169.2,1168.9,1.29719115]
[1610008692559,67.5023,1169.8,1168.9,1.29719115]
[1610008697567,3.674,1171.4,1168.9,1.29719115]
[1610008698368,62.9448,1170.5,1168.9,1.29719115]
[1610008698569,61.90685823,1170.5,1168.9,1.29719115]
[1610008699270,61.90685823,1170.5,1170.4,11.41791586]
[1610008700669,61.90685823,1170.5,1170.4,12.71534303]
[1610008703677,11.051,1171.4,1170.4,12.71534303]
[1610008703877,7.377,1171.4,1170.4,12.71534303]
[1610008704680,6.33907038,1171.4,1170.5,1.29741202]
[1610008704881,22.043,1172.5,1170.5,1.29741202]
[1610008707787,59.1041,1171.5,1170.5,1.29741202]
[1610008710188,58.06621221,1171.5,1170.5,1.29741202]
[1610008716094,57.02831803,1171.5,1170.5,1.29741202]
[1610008719500,67.6426,1170.9,1170.5,1.29741202]
[1610008721099,70.193,1170.8,1170.5,1.29741202]
[1610008721999,69.15519826,1170.8,1170.5,1.29741202]
[1610008722199,3.674,1171.5,1170.5,1.29741202]
[1610008722400,29.42,1172.5,1170.5,1.29741202]
[1610008724501,18.428,1172.5,1170.5,1.29741202]
[1610008726804,18.428,1172.5,1170.7,61.8995]
[1610008728008,17.39061969,1172.5,1170.8,1.29672539]
[1610008728208,10.01361969,1172.5,1170.8,1.29672539]
[1610008734012,8.97641743,1172.5,1170.8,1.29672539]
[1610008737215,8.97641743,1172.5,1170.5,1.29649584]
[1610008740120,15.31600938,1172.5,1170.5,1.29649584]
[1610008743323,7.93900938,1172.5,1170.5,1.29649584]
[1610008745730,2.93900938,1172.5,1170.5,1.29649584]
[1610008745928,11.5169,1173.7,1170.5,1.29649584]
[1610008746326,22.5679,1173.7,1170.5,1.29649584]
[1610008752030,21.53077419,1173.7,1170.5,1.29649584]
[1610008754731,68.4415,1173.4,1171.1,69.12]
[1610008756832,68.4415,1173.4,1171.2,1.2963701]
[1610008758332,67.40444039,1173.4,1171.2,1.2963701]
[1610008760636,21.53077419,1173.7,1171.2,1.2963701]
[1610008761835,21.53077419,1173.7,1170.5,1.29610153]
[1610008763334,21.53077419,1173.7,1171.4,63.5941]
[1610008764238,21.53077419,1173.7,1170.5,1.29610153]
[1610008764239,21.53077419,1173.7,1172.0,61.6045]
[1610008764538,20.49402849,1173.7,1172.0,61.6045]
[1610008764836,20.49402849,1173.7,1172.1,1.29593548]
[1610008770140,19.45745378,1173.7,1172.1,1.29593548]
[1610008771441,11.051,1173.7,1172.1,1.29593548]
[1610008776356,10.01470754,1173.7,1172.1,1.29593548]
[1610008776554,10.01470754,1173.7,1172.1,3.22423548]
[1610008776755,66.7214,1174.1,1172.1,3.22423548]